bitfinex-derivatives/quotes_SOLF0:USTF0_20241217
["timestamp","ask_amount","ask_price","bid_price","bid_amount"]
[1734424557811,0.16679,217.21,217.16,2.3023]
[1734424558115,0.16679,217.21,217.14,7.17344381]
[1734424558418,0.16679,217.21,217.17,2.3021]
[1734424558610,0.16679,217.21,217.18,2.38]
[1734424562015,0.16679,217.21,217.18,9.55344381]
[1734424562319,0.16679,217.21,217.2,2.3019]
[1734424564421,0.16679,217.21,217.19,2.302]
[1734424564622,0.16679,217.21,217.15,5.49424227]
[1734424564824,7.17344381,217.2,217.16,2.5]
[1734424565824,7.17344381,217.2,217.16,4.8022]
[1734424566020,0.16679,217.21,217.18,7.17344381]
[1734424566622,0.16679,217.21,217.19,2.302]
[1734424567527,0.16679,217.21,217.18,7.17344381]
[1734424568517,0.16679,217.21,217.2,2.3019]
[1734424569128,3.8021,217.28,217.2,7.17344381]
[1734424569323,10.97554381,217.28,217.21,2.5]
[1734424570027,2.3013,217.26,217.21,4.8017]
[1734424570723,2.3013,217.25,217.21,4.8017]
[1734424573228,7.17344381,217.26,217.18,7.17344381]
[1734424573523,7.17344381,217.22,217.18,2.5]
[1734424574127,2.302,217.2,217.18,2.5]
[1734424574330,7.17344381,217.2,217.18,2.5]
[1734424574531,7.17344381,217.2,217.12,7.17344381]
[1734424574729,2.3023,217.17,217.13,2.5]
[1734424575142,2.3023,217.17,217.13,4.8026]
[1734424575429,2.3023,217.17,217.13,2.5]
[1734424575727,7.17344381,217.18,217.13,2.5]
[1734424575927,2.3023,217.16,217.13,2.5]
[1734424576327,2.3025,217.15,217.13,2.5]
[1734424576828,2.3025,217.15,217.11,2.5]
[1734424577527,7.17344381,217.15,217.11,2.5]
[1734424577935,7.17344381,217.13,217.09,2.5]
[1734424578137,7.17344381,217.13,217.08,7.17344381]
[1734424578138,2.3028,217.11,217.08,7.17344381]
[1734424579634,7.17344381,217.11,217.04,12.68203946]
[1734424579936,7.17344381,217.11,217.05,2.5]
[1734424580333,2.3031,217.09,217.05,2.5]
[1734424580637,7.17344381,217.11,217.04,12.68203946]
[1734424580935,2.3032,217.08,217.04,12.68203946]
[1734424581131,2.3032,217.08,217.05,2.5]
[1734424582639,2.3033,217.07,217.05,2.5]
[1734424582942,7.17344381,217.07,217.01,12.80318631]
[1734424583238,7.17344381,217.05,217.01,5.6297425]
[1734424583541,7.17344381,217.03,216.98,2.5]
[1734424584032,1.5945,217.09,216.99,7.17344381]
[1734424584033,2.3038,217.02,216.99,7.17344381]
[1734424584242,1.5945,217.09,216.99,7.17344381]
[1734424584442,7.17344381,217.06,216.99,7.17344381]
[1734424584638,2.3036,217.04,216.99,7.17344381]
[1734424585142,1.5945,217.09,217.03,9.47704381]
[1734424585143,2.3031,217.08,217.03,9.47704381]
[1734424585439,8.76794381,217.09,217.03,9.67344381]
[1734424586036,2.3031,217.08,217.03,11.97714381]
[1734424586237,7.17344381,217.07,217.03,2.5]
[1734424587033,9.47674381,217.07,217.03,2.5]
[1734424587943,3.1785,217.1,217.05,7.17344381]
[1734424588839,2.3031,217.09,217.05,9.47684381]
[1734424589044,2.3031,217.09,217.03,9.67344381]
[1734424589045,9.47654381,217.09,217.03,9.67344381]
[1734424589541,9.47654381,217.09,217.05,2.3034]
[1734424589942,2.3031,217.09,217.05,2.3034]
[1734424590143,2.3029,217.1,217.05,2.3034]
[1734424590340,2.3029,217.1,217.05,9.47684381]
[1734424591141,2.3029,217.1,217.05,7.17344381]
[1734424591337,2.3029,217.1,217.06,2.3033]
[1734424591839,2.303,217.09,217.05,7.17344381]
[1734424592042,2.303,217.09,217.04,2.3035]
[1734424595340,7.17344381,217.07,216.99,4.7508]
[1734424595542,7.17344381,217.07,216.98,5.61663285]
[1734424595743,7.17344381,217.07,217.0,9.53344381]
[1734424596040,2.3036,217.04,217.0,11.83744381]
[1734424596545,2.3036,217.04,217.0,9.47744381]
[1734424596744,2.3036,217.04,217.01,2.36]
[1734424596941,7.17344381,217.05,216.98,7.92073285]
[1734424597137,7.17344381,217.04,216.99,2.36]
[1734424597441,9.47654381,217.08,217.03,2.3037]
[1734424597641,9.47654381,217.08,217.04,2.36]
[1734424598544,2.3033,217.07,217.04,2.36]
[1734424599342,2.3031,217.09,217.05,2.3035]
[1734424603851,7.17344381,217.08,217.04,2.36]
[1734424604449,1.4862,217.16,217.04,2.36]
[1734424604749,7.17344381,217.1,217.04,2.36]
[1734424604940,7.17344381,217.1,217.04,4.6635]
[1734424604941,2.3032,217.08,217.04,4.6635]
[1734424606249,2.3034,217.06,217.04,2.36]
[1734424606452,7.17344381,217.08,217.04,2.36]
[1734424606853,1.4862,217.16,217.04,2.36]
[1734424607052,7.17344381,217.1,217.04,2.36]
[1734424607545,9.47634381,217.1,217.06,2.3033]
[1734424608541,2.303,217.09,217.05,2.3034]
[1734424608745,7.17344381,217.1,217.04,2.36]
[1734424609549,2.3032,217.07,217.04,4.6635]
[1734424609751,7.17344381,217.08,216.99,4.6278]
[1734424610049,2.3035,217.05,217.01,2.3038]
[1734424610451,2.36,217.12,216.99,2.36]
[1734424610452,7.17344381,217.04,216.99,2.36]
[1734424610651,7.17344381,217.04,216.99,4.6641]
[1734424610953,2.36,217.12,216.99,9.53344381]
[1734424611153,2.36,217.12,217.02,2.3037]
[1734424611154,7.17344381,217.07,217.02,2.3037]
[1734424611347,7.17344381,217.07,217.01,7.17344381]
[1734424611854,7.17344381,217.09,217.01,7.17344381]
[1734424612347,9.47654381,217.09,217.01,7.17344381]
[1734424612553,7.17344381,217.09,217.01,7.17344381]
[1734424612754,2.3033,217.07,217.01,7.17344381]
[1734424612955,9.47674381,217.07,217.01,7.17344381]
[1734424613852,9.47674381,217.07,217.02,2.3038]
[1734424614347,2.3036,217.04,216.99,2.304]
[1734424614554,3.8462,217.16,217.0,2.36]
[1734424614751,7.17344381,217.07,217.01,7.17344381]
[1734424615453,2.3034,217.06,217.01,9.47724381]
[1734424615653,2.3034,217.06,217.01,2.3038]
[1734424616049,2.3034,217.06,217.01,9.47724381]
[1734424616456,2.3034,217.06,217.02,2.3038]
[1734424617260,7.17344381,217.09,217.01,7.17344381]
[1734424617750,9.47644381,217.09,217.04,2.3035]
[1734424618157,9.47644381,217.09,217.01,7.17344381]
[1734424618359,9.47644381,217.09,217.02,4.90370087]
[1734424618559,9.47644381,217.09,217.03,4.90370087]
[1734424618758,9.47644381,217.09,217.04,4.90370087]
[1734424618961,9.47644381,217.09,217.05,4.90370087]
[1734424619253,9.47644381,217.09,217.05,2.36]
[1734424619450,9.47644381,217.09,217.05,4.6634]
[1734424619851,9.47644381,217.09,217.05,2.36]
[1734424620056,9.47644381,217.09,217.06,2.3033]
[1734424620354,1.4862,217.16,217.05,9.53344381]
[1734424620556,7.17344381,217.13,217.07,7.17344381]
[1734424620862,7.17344381,217.13,217.08,4.91113754]
[1734424621058,7.17344381,217.13,217.07,7.17344381]
[1734424621259,1.4862,217.16,217.08,4.91074554]
[1734424621559,1.4862,217.16,217.07,7.17344381]
[1734424621560,7.17344381,217.15,217.09,4.91074554]
[1734424621761,7.17344381,217.15,217.07,7.17344381]
[1734424621762,7.17344381,217.15,217.1,7.17074554]
[1734424621960,7.17344381,217.15,217.11,4.9110045]
[1734424622159,7.17344381,217.15,217.1,2.26]
[1734424622357,7.17344381,217.15,217.11,4.91204443]
[1734424622557,7.17344381,217.15,217.1,2.26]
[1734424622859,7.17344381,217.15,217.11,7.21447262]
[1734424623060,3.7886,217.16,217.1,2.26]
[1734424623061,1.4862,217.16,217.1,2.26]
[1734424623263,11.06804381,217.17,217.12,2.3026]
[1734424623764,9.47564381,217.17,217.12,2.3026]
[1734424624064,7.17344381,217.19,217.13,7.17344381]
[1734424624266,7.17344381,217.19,217.11,7.17344381]
[1734424624466,7.17344381,217.19,217.12,4.90961103]
[1734424624865,9.47544381,217.19,217.14,2.3024]
[1734424625161,9.47544381,217.19,217.15,2.26]
[1734424625358,9.47544381,217.19,217.15,4.5624]
[1734424625559,2.302,217.19,217.15,2.26]
[1734424625754,9.47534381,217.2,217.15,2.26]
[1734424625959,7.17344381,217.2,217.15,2.26]
[1734424626156,7.17344381,217.18,217.11,7.17344381]
[1734424626360,7.17344381,217.16,217.12,4.5627]
[1734424627161,9.47574381,217.16,217.12,2.26]
[1734424627366,7.17344381,217.19,217.13,9.43344381]
[1734424627867,7.17344381,217.19,217.13,2.26]
[1734424628260,9.47554381,217.19,217.13,9.43344381]
[1734424629167,7.17344381,217.21,217.13,9.43344381]
[1734424629464,2.3019,217.2,217.13,9.43344381]
[1734424629665,2.3019,217.2,217.15,7.17344381]
[1734424629967,7.17344381,217.2,217.13,2.26]
[1734424630164,7.17344381,217.2,217.14,4.89465933]
[1734424630363,9.47534381,217.2,217.16,2.3022]
[1734424631267,7.17344381,217.2,217.13,9.43344381]
[1734424631466,2.302,217.19,217.15,2.3024]
[1734424631665,7.17344381,217.18,217.12,7.17344381]
[1734424631864,7.17344381,217.18,217.13,2.26]
[1734424632064,2.3022,217.17,217.13,4.5626]
[1734424632666,2.3022,217.17,217.13,2.26]
[1734424633169,2.3023,217.16,217.13,2.26]
[1734424633371,2.3023,217.16,217.11,7.94253967]
[1734424633570,7.17344381,217.16,217.12,2.26]
[1734424633761,2.3025,217.15,217.12,2.26]
[1734424638871,3.797,217.24,217.11,2.26]
[1734424638872,2.3026,217.14,217.11,2.26]
[1734424639075,7.17344381,217.16,217.11,2.26]
[1734424639372,2.3027,217.13,217.11,2.26]
[1734424639570,2.3027,217.13,217.09,4.563]
[1734424640267,2.3027,217.12,217.09,4.563]
[1734424640474,7.17344381,217.14,217.09,2.26]
[1734424641974,2.3026,217.14,217.1,7.17344381]
[1734424642472,2.3026,217.14,217.1,9.47624381]
[1734424642672,1.619,217.15,217.1,7.17344381]
[1734424643074,1.619,217.15,217.12,2.3027]
[1734424643372,3.9215,217.15,217.12,2.3027]
[1734424644176,1.619,217.15,217.1,7.17344381]
[1734424644576,8.71164381,217.18,217.1,7.17344381]
[1734424644978,1.6265,217.21,217.16,7.17344381]
[1734424645276,1.5798,217.28,217.18,7.17344381]
[1734424645473,0.71363965,217.23,217.2,2.3019]
[1734424646079,3.8384,217.24,217.2,2.3019]
[1734424648275,3.8384,217.24,217.19,4.5619]
[1734424648478,2.3017,217.22,217.19,2.26]
[1734424648678,2.3017,217.22,217.16,7.17344381]
[1734424648878,7.17344381,217.23,217.17,4.5621]
[1734424650180,9.47504381,217.23,217.17,4.5621]
[1734424650679,9.47504381,217.23,217.18,2.302]
[1734424650874,7.17344381,217.23,217.17,2.26]
[1734424651080,9.47484381,217.25,217.18,7.17344381]
[1734424651279,9.47484381,217.25,217.2,2.3019]
[1734424653184,7.17344381,217.25,217.19,2.302]
[1734424654477,9.47504381,217.23,217.18,2.3021]
[1734424654880,7.17344381,217.23,217.18,2.3021]
[1734424655080,2.3017,217.22,217.18,2.3021]
[1734424656077,2.3016,217.23,217.18,7.17344381]
[1734424656277,2.3016,217.23,217.19,2.3019]
[1734424656681,2.3016,217.23,217.18,9.47544381]
[1734424656874,2.3018,217.21,217.18,2.26]
[1734424657481,2.3017,217.22,217.18,2.26]
[1734424658380,2.3017,217.22,217.18,4.5621]
[1734424659476,2.3017,217.22,217.18,11.73554381]
[1734424659976,2.3013,217.25,217.19,2.3019]
[1734424660180,7.17344381,217.26,217.2,7.17344381]
[1734424660875,2.3015,217.24,217.19,2.3019]
[1734424661083,7.17344381,217.24,217.18,9.43344381]
[1734424661591,2.3016,217.23,217.18,11.73544381]
[1734424662385,2.3016,217.23,217.19,2.3019]
[1734424662883,7.17344381,217.24,217.19,2.3019]
[1734424662884,9.47494381,217.24,217.19,2.3019]
[1734424663582,7.17344381,217.26,217.18,9.43344381]
[1734424663885,7.17344381,217.2,217.14,2.26]
[1734424664089,7.17344381,217.2,217.15,4.8882651]
[1734424664282,7.17344381,217.22,217.17,2.3022]
[1734424665181,7.17344381,217.24,217.18,12.06320015]
[1734424665486,7.17344381,217.24,217.19,2.26]
[1734424665784,7.17344381,217.26,217.19,2.26]
[1734424666687,7.17344381,217.26,217.2,7.17344381]
[1734424666987,9.47464381,217.26,217.22,2.3016]
[1734424667288,10.37974381,217.28,217.2,7.17344381]
[1734424667487,0.71337853,217.27,217.2,7.17344381]
[1734424667688,8.79994381,217.28,217.22,7.17344381]
[1734424667987,7.17344381,217.32,217.26,7.17344381]
[1734424668287,0.71323261,217.31,217.26,9.43344381]
[1734424668482,2.3008,217.3,217.26,9.43344381]
[1734424668688,7.17344381,217.3,217.26,2.26]
[1734424668987,7.17344381,217.28,217.22,2.26]
[1734424669182,2.3013,217.25,217.22,4.5616]
[1734424669380,2.3013,217.25,217.22,2.26]
[1734424669579,7.17344381,217.26,217.22,2.26]
[1734424669883,9.47464381,217.26,217.22,2.26]
[1734424670387,2.3012,217.26,217.22,4.5616]
[1734424671389,2.3012,217.26,217.22,2.26]
[1734424671390,2.3013,217.25,217.22,2.26]
[1734424671586,2.3013,217.25,217.21,2.3017]
[1734424671789,2.3013,217.25,217.21,4.5617]
[1734424673792,2.3012,217.27,217.22,2.3015]
[1734424674189,7.17344381,217.28,217.21,9.43344381]
[1734424674893,2.3013,217.26,217.21,11.73514381]
[1734424675191,2.3013,217.26,217.21,9.43344381]
[1734424675986,2.3013,217.26,217.22,2.3016]
[1734424677392,2.3014,217.25,217.21,11.73514381]
[1734424678991,9.47464381,217.26,217.21,2.26]
[1734424679296,7.17344381,217.26,217.21,2.26]
[1734424680394,7.17344381,217.29,217.23,7.17344381]
[1734424680790,3.0144529,217.28,217.24,2.3014]
[1734424680990,2.3011,217.28,217.24,2.3014]
[1734424681687,2.3011,217.27,217.24,2.3014]
[1734424681993,7.17344381,217.27,217.21,11.71514381]
[1734424682696,2.3015,217.24,217.21,11.71514381]
[1734424683287,7.17344381,217.27,217.21,11.71514381]
[1734424683498,2.3015,217.23,217.21,9.41344381]
[1734424683892,7.17344381,217.27,217.21,9.41344381]
[1734424684088,7.17344381,217.27,217.21,11.71514381]
[1734424684393,7.17344381,217.27,217.21,9.41344381]
[1734424684794,7.08776632,217.34,217.19,2.24]
[1734424684795,7.17344381,217.25,217.19,2.24]
[1734424684988,2.24,217.3,217.21,7.17344381]
[1734424685193,2.3015,217.24,217.21,9.47514381]
[1734424685499,7.17344381,217.24,217.19,2.24]
[1734424685691,7.17344381,217.26,217.19,9.41344381]
[1734424685895,7.17344381,217.24,217.19,2.24]
[1734424686287,2.24,217.28,217.19,9.41344381]
[1734424686487,7.17344381,217.24,217.19,2.24]
[1734424686788,2.3018,217.21,217.19,2.24]
[1734424687595,7.17344381,217.25,217.19,9.41344381]
[1734424688397,2.3015,217.24,217.2,2.3018]
[1734424688591,4.6001,217.38,217.21,7.17344381]
[1734424688790,7.17344381,217.29,217.21,7.17344381]
[1734424689001,0.71337488,217.28,217.21,7.17344381]
[1734424689295,0.71337488,217.28,217.22,4.89990549]
[1734424689489,7.17344381,217.29,217.21,7.17344381]
[1734424689689,7.17344381,217.29,217.22,4.89997196]
[1734424689889,7.17344381,217.29,217.21,7.17344381]
[1734424690091,7.17344381,217.29,217.23,7.17344381]
[1734424690291,7.17344381,217.31,217.24,2.24]
[1734424690596,0.71332593,217.3,217.25,7.17344381]
[1734424690786,7.17344381,217.32,217.25,9.47474381]
[1734424690997,0.71331213,217.31,217.25,9.47474381]
[1734424692291,0.71331213,217.31,217.25,7.17344381]
[1734424692794,2.301,217.29,217.25,7.17344381]
[1734424692999,7.17344381,217.32,217.25,7.17344381]
[1734424693190,2.301,217.29,217.25,7.17344381]
[1734424693896,2.301,217.29,217.25,9.47474381]
[1734424694791,2.301,217.28,217.25,9.47474381]
[1734424695296,7.17344381,217.31,217.25,9.47474381]
[1734424695791,2.301,217.29,217.25,9.47474381]
[1734424695990,7.17344381,217.31,217.25,9.47474381]
[1734424697801,2.301,217.28,217.25,9.47474381]
[1734424698196,2.3008,217.31,217.27,2.3011]
[1734424698496,7.10484185,217.33,217.27,7.17344381]
[1734424698695,256.41343913,217.35,217.31,7.17344381]
[1734424698999,256.41343913,217.35,217.33,7.17344381]
[1734424699691,7.17344381,217.38,217.32,2.24]
[1734424700492,1.8204,217.42,217.32,2.24]
[1734424700690,7.17344381,217.38,217.32,2.24]
[1734424700897,7.17344381,217.36,217.32,2.24]
[1734424701300,2.3004,217.35,217.32,2.24]
[1734424701900,2.3004,217.34,217.32,2.24]
[1734424703601,2.3004,217.35,217.32,2.24]
[1734424703997,7.17344381,217.39,217.33,7.17344381]
[1734424704795,9.47324381,217.39,217.35,2.3003]
[1734424705002,7.17344381,217.39,217.35,2.3003]
[1734424705198,7.17344381,217.41,217.35,2.3003]
[1734424705594,36.68137904,219.16,217.4,7.17344381]
[1734424705595,292.94678999,217.5,217.4,7.17344381]
[1734424705898,292.94678999,217.5,217.48,7.17344381]
[1734424706095,292.94678999,217.5,217.46,7.17344381]
[1734424706300,292.94678999,217.5,217.47,2.24]
[1734424708002,295.24548999,217.5,217.47,2.24]
[1734424708404,292.94678999,217.5,217.47,2.24]
[1734424709200,295.24558999,217.5,217.36,1.5377]
[1734424709505,295.24558999,217.5,217.44,7.17344381]
[1734424709703,295.24558999,217.5,217.45,2.24]
[1734424710207,292.94678999,217.5,217.46,7.17344381]
[1734424711005,295.24548999,217.5,217.46,7.17344381]
[1734424713210,292.94678999,217.5,217.46,9.47254381]
[1734424714514,295.24548999,217.5,217.46,9.47254381]
[1734424714914,295.24548999,217.5,217.46,7.17344381]
[1734424718319,292.94678999,217.5,217.48,9.47234381]
[1734424719719,292.94678999,217.5,217.49,2.2988]
[1734424720423,292.94678999,217.5,217.49,4.5588]
[1734424721420,292.94678999,217.5,217.47,2.299]
[1734424721724,292.94678999,217.5,217.49,7.17344381]
[1734424721923,292.94678999,217.5,217.48,2.26]
[1734424722124,292.94678999,217.5,217.48,9.43344381]
[1734424723030,292.94678999,217.5,217.48,11.73224381]
[1734424723322,292.94678999,217.5,217.48,9.43344381]
[1734424723323,213.96822236,217.5,217.48,9.43344381]
[1734424723518,213.96822236,217.5,217.48,7.17344381]
[1734424723716,213.96822236,217.5,217.49,4.5588]
[1734424724118,213.96822236,217.5,217.49,11.73224381]
[1734424725719,141.12945473,217.5,217.49,11.73224381]
[1734424728222,141.12945473,217.5,217.49,9.47224381]
[1734424728422,141.12945473,217.5,217.49,11.73224381]
[1734424728822,141.12945473,217.5,217.49,9.47224381]
[1734424729022,141.12945473,217.5,217.49,11.73224381]
[1734424729824,141.12945473,217.5,217.49,9.47224381]
[1734424730125,141.12945473,217.5,217.49,7.17344381]
[1734424730319,141.12945473,217.5,217.49,9.43344381]
[1734424735126,141.12945473,217.5,217.49,11.73224381]
[1734424735522,68.2906871,217.5,217.49,11.73224381]
[1734424737131,68.2906871,217.5,217.49,4.5588]
[1734424737326,68.2906871,217.5,217.49,11.73224381]
[1734424741229,68.2906871,217.5,217.49,4.5588]
[1734424741429,68.2906871,217.5,217.49,11.73224381]
[1734424742632,68.2906871,217.5,217.49,4.5588]
[1734424742836,68.2906871,217.5,217.49,11.73224381]
[1734424743435,68.2906871,217.5,217.49,4.5388]
[1734424743625,68.2906871,217.5,217.49,11.71224381]
[1734424747738,68.2906871,217.5,217.49,16.56579994]
[1734424748528,68.2906871,217.5,217.49,11.71224381]
[1734424748734,68.2906871,217.5,217.49,16.56872739]
[1734424749332,68.2906871,217.5,217.49,22.01991824]
[1734424751941,68.2906871,217.5,217.49,17.16343466]
[1734424752140,68.2906871,217.5,217.49,22.03189336]
[1734424753340,2.2977,217.6,217.49,19.73309336]
[1734424753635,2.2977,217.59,217.55,9.47154381]
[1734424753831,2.2977,217.59,217.56,2.24]
[1734424755433,2.2977,217.59,217.55,2.2981]
[1734424755637,2.2977,217.59,217.56,2.24]
[1734424756035,7.48579381,217.61,217.56,2.24]
[1734424756235,2.2979,217.58,217.56,2.24]
[1734424761046,2.60995,217.61,217.57,2.2979]
[1734424761650,7.48579381,217.61,217.56,2.24]
[1734424762242,2.2977,217.6,217.56,4.5381]
[1734424762639,7.48579381,217.61,217.56,2.24]
[1734424762840,0.31235,217.61,217.56,2.24]
[1734424763044,7.48579381,217.61,217.56,2.24]
[1734424763340,2.2978,217.59,217.56,2.24]
[1734424763745,2.2978,217.59,217.56,4.538]
[1734424764342,2.2977,217.6,217.57,2.2979]
[1734424764545,0.31235,217.61,217.57,2.2979]
[1734424764749,0.31235,217.61,217.56,9.41344381]
[1734424767047,0.31235,217.61,217.56,2.24]
[1734424767244,7.17344381,217.6,217.56,2.24]
[1734424767649,1.4896,217.59,217.51,7.17344381]
[1734424767850,2.2979,217.58,217.54,2.2982]
[1734424768053,2.2979,217.58,217.52,2.24]
[1734424769257,2.2979,217.58,217.55,2.2981]
[1734424769848,9.47134381,217.58,217.55,2.2981]
[1734424770257,2.298,217.57,217.54,2.2983]
[1734424770554,2.298,217.57,217.55,2.24]
[1734424770948,2.2981,217.56,217.55,2.24]
[1734424771156,7.17344381,217.58,217.54,2.2]
[1734424771457,7.17344381,217.56,217.34,21.9755776]
[1734424771658,1.4896,217.59,217.46,7.17344381]
[1734424771659,7.17344381,217.54,217.46,7.17344381]
[1734424771858,1.4927,217.53,217.47,2.2]
[1734424772159,1.4927,217.53,217.48,4.8886729]
[1734424772358,1.4927,217.53,217.49,4.8886729]
[1734424772555,3.7911,217.53,217.5,4.8886729]
[1734424772754,3.7911,217.53,217.49,2.2987]
[1734424772953,3.7911,217.53,217.47,2.2]
[1734424773154,3.7911,217.53,217.49,2.2987]
[1734424773361,3.7911,217.53,217.5,4.88824965]
[1734424773561,3.7911,217.53,217.49,2.2987]
[1734424773858,3.7911,217.53,217.5,4.88978886]
[1734424774056,3.7911,217.53,217.49,2.2987]
[1734424774356,3.7911,217.53,217.5,4.89000289]
[1734424774554,3.7911,217.53,217.49,2.2987]
[1734424774760,3.7911,217.53,217.5,4.8899729]
[1734424774960,9.47194381,217.52,217.49,2.2987]
[1734424775162,9.47194381,217.52,217.5,4.89016155]
[1734424775363,9.47194381,217.52,217.49,2.2987]
[1734424776060,9.47194381,217.52,217.48,2.2989]
[1734424776257,2.2985,217.52,217.49,4.89136176]
[1734424776453,2.2985,217.52,217.48,4.4989]
[1734424776454,9.47194381,217.52,217.48,4.4989]
[1734424777262,3.0475,217.53,217.48,2.2]
[1734424777852,2.2985,217.52,217.48,2.2]
[1734424778163,3.0475,217.53,217.48,2.2]
[1734424778556,5.346,217.53,217.48,4.4989]
[1734424778764,5.346,217.53,217.48,2.2]
[1734424779262,5.346,217.53,217.49,4.89254914]
[1734424779263,2.2985,217.52,217.49,4.89254914]
[1734424779461,2.2985,217.52,217.48,4.4989]
[1734424779757,2.2985,217.52,217.49,4.89264669]
[1734424780059,2.2985,217.52,217.48,4.4989]
[1734424780258,7.17344381,217.52,217.49,4.89259162]
[1734424780459,7.17344381,217.52,217.48,2.2]
[1734424780762,7.17344381,217.5,217.46,2.2]
[1734424780962,9.47224381,217.5,217.46,2.2]
[1734424781164,2.2988,217.5,217.46,2.2]
[1734424781854,2.2988,217.5,217.46,11.67244381]
[1734424783957,2.2988,217.49,217.46,2.2]
[1734424784259,7.17344381,217.5,217.46,2.2]
[1734424785058,2.299,217.47,217.44,2.2]
[1734424785562,2.299,217.47,217.32,6.2152]
[1734424785563,2.2993,217.44,217.41,2.2996]
[1734424785763,2.2993,217.44,217.41,4.4996]
[1734424786263,2.2992,217.45,217.42,2.2995]
[1734424786855,2.299,217.47,217.43,2.2994]
[1734424787963,2.299,217.47,217.44,2.2993]
[1734424790163,7.17344381,217.49,217.42,7.17344381]
[1734424790364,7.17344381,217.45,217.32,4.6011]
[1734424790563,7.17344381,217.45,217.33,2.2]
[1734424790765,2.2992,217.45,217.41,2.2996]
[1734424790961,2.2992,217.45,217.41,4.4996]
[1734424791965,2.2992,217.45,217.42,4.4995]
[1734424795865,7.17344381,217.46,217.42,2.2]
[1734424796065,7.17344381,217.49,217.42,2.2]
[1734424796962,7.17344381,217.49,217.44,2.2992]
[1734424797265,7.17344381,217.49,217.42,2.2]
[1734424797464,7.17344381,217.47,217.42,2.2]
[1734424799265,2.2991,217.46,217.43,2.2994]
[1734424799962,2.2993,217.45,217.42,4.4995]
[1734424800868,2.2994,217.44,217.42,2.2]
[1734424801073,7.17344381,217.45,217.42,2.2]
[1734424801469,3.0475,217.53,217.43,7.17344381]
[1734424801670,7.17344381,217.51,217.45,7.17344381]
[1734424802170,7.17344381,217.51,217.43,7.17344381]
[1734424803368,7.17344381,217.49,217.43,7.17344381]
[1734424803566,2.2989,217.48,217.45,2.2992]
[1734424805771,9.47244381,217.47,217.42,2.2]
[1734424807069,9.47244381,217.47,217.41,7.17344381]
[1734424807266,9.47244381,217.47,217.42,2.18]
[1734424807469,2.2991,217.46,217.42,4.4795]
[1734424807775,7.17344381,217.45,217.41,2.18]
[1734424808075,2.2993,217.44,217.41,2.18]
[1734424808373,7.17344381,217.45,217.41,2.18]
[1734424809177,2.2994,217.44,217.41,2.18]
[1734424811278,7.17344381,217.45,217.41,2.18]
[1734424811885,2.2993,217.44,217.41,2.18]
[1734424812883,7.17344381,217.45,217.41,2.18]
[1734424813181,2.2995,217.43,217.41,2.18]
[1734424814288,2.2995,217.42,217.41,2.18]
[1734424814682,2.2995,217.42,217.38,9.47334381]
[1734424814886,2.2995,217.42,217.39,2.18]
[1734424815290,9.47294381,217.43,217.39,4.4798]
[1734424816389,7.17344381,217.43,217.39,2.18]
[1734424817390,2.2996,217.42,217.39,2.18]
[1734424817591,7.17344381,217.43,217.39,2.18]
[1734424817787,9.47294381,217.43,217.39,4.4798]
[1734424817989,7.17344381,217.43,217.39,2.18]
[1734424819391,7.17344381,217.43,217.26,4.6023]
[1734424819392,7.17344381,217.41,217.26,4.6023]
[1734424819587,1.5371,217.49,217.31,7.17344381]
[1734424819588,7.17344381,217.38,217.31,7.17344381]
[1734424819792,7.17344381,217.38,217.32,4.85658884]
[1734424819993,2.3001,217.37,217.33,4.4804]
[1734424820293,7.17344381,217.38,217.33,4.4804]
[1734424820697,7.17344381,217.36,217.33,4.4804]
[1734424822192,2.3001,217.37,217.33,4.4804]
[1734424822494,9.47354381,217.37,217.33,4.4804]
[1734424822693,7.17344381,217.37,217.31,5.6313682]
[1734424822894,2.3002,217.36,217.32,4.4806]
[1734424823596,7.17344381,217.37,217.32,2.18]
[1734424824199,7.17344381,217.37,217.34,2.3004]
[1734424824391,7.17344381,217.37,217.32,2.18]